Cogmind - Beta 12 X1 @@@ ROGUE MODE // 2022.07.11 @ 15:35:05 Player: youngster Result: Destroyed by Y-64 Sentinel with Wave Gun Performance ------------- Evolutions (5) 2500 Regions Visited (15) 3000 Robots Destroyed (248) 1240 Value Destroyed (12889) 12889 Prototype IDs (46) 920 Alien Tech Used (0) 0 Bonus (9817) 9817 TOTAL SCORE: 30366 Bonus ------- High Alert Combat Kills 3887 Follower Combat Kills 1766 Entered Garrisons 1000 Used RIF Installer 3000 Aligned with FarCom 300 Friendly Fire -136 Cogmind --------- Core Integrity 0/1000 Matter 128/300 Energy 87/100 System Corruption 11% Temperature Cool (4) Movement Walking (120) Location -5/Garrison Parts ------- > --- POWER (1) -------- (None) > --- PROPULSION (4) --- Flexi-carbon Leg > --- UTILITY (9) ------ Enhanced Optical Array Targeting Computer Targeting Computer Advanced Targeting Computer Relay Coupler [Sentry] (26) Relay Coupler [Sentry] (20) > --- WEAPON (3) ------- Heavy Mass Driver > --- INVENTORY (5) ---- Long-range Terrain Scanner Improved Light Armor Plating Graphene Brace Heavy Mass Driver Peak State ------------ > --- POWER ------------ Micro Nuclear Core > --- PROPULSION ------- Improved Heavy Treads Heavy Siege Treads > --- UTILITY ---------- Cargo Storage Unit Advanced Targeting Computer Graphene Brace Relay Coupler [NC] Relay Coupler [Hunter] Relay Coupler [Heavy] > --- WEAPON ----------- Railgun Heavy Linear Accelerator > --- INVENTORY -------- Improved Heavy Treads Improved Heavy Treads Armored Wheel Coolant Injector High-capacity Matter Pod Advanced Visual Processing Unit Enhanced Optical Array Long-range Terrain Scanner Hardened Heavy Armor Plating Improved Light Armor Plating Improved Light Armor Plating Improved Heavy Armor Plating Medium Reactive Plating Improved Focal Shield Remote Shield Remote Force Field Relay Coupler [NC] Relay Coupler [Swarmer] Relay Coupler [Sentry] Sensor Drone Bay HERF Cannon Missile Launcher Improved Remote Datajack Power Maul EM Surge Trap [Rating: 92] Favorites ----------- Power Ion Engine Engine Ion Engine Power Core Nuclear Core Reactor Antimatter Reactor Propulsion Improved Heavy Treads Treads Improved Heavy Treads Leg Flexi-carbon Leg Wheel Armored Wheel Hover Unit Combat Airjet Flight Unit Improved Cesium-ion Thruster Utility Cargo Storage Unit Device Improved Heat Sink Storage Cargo Storage Unit Processor Advanced Targeting Computer Hackware Relay Coupler [Heavy] Protection Hardened Heavy Armor Plating Weapon Power Maul Energy Gun Beam Rifle Energy Cannon HERF Cannon Ballistic Gun KE Penetrator Ballistic Cannon Heavy Assault Cannon Launcher Grenade Launcher Special Weapon Improved Remote Datajack Impact Weapon Power Maul Slashing Weapon Makeshift Sword Special Melee Weapon Datajack Build | -11 -10 -10 -10 -9 -8 -8 -8 -7 -7 -7 -7 -6 -6 -5 -5 ------- Run | Scr Mat Min Exi Min Mat Gar Mat Fac Gar Fac Gar Fac Gar Fac Gar Slots Evolved 10 | . . . . . 4 . . 2 . . . 2 . 2 . Power . | . . . . . . . . . . . . . . . . Propulsion 2 | . . . . . 1 . . . . . . 1 . . . Utility 7 | . . . . . 2 . . 2 . . . 1 . 2 . Weapon 1 | . . . . . 1 . . . . . . . . . . Parts Attached 320 | 7 8 13 2 16 54 44 6 2 42 21 28 9 28 10 30 Power 10 | 1 1 . . 1 2 1 . . 1 . 1 1 1 . . Engine 6 | 1 1 . . 1 2 . . . 1 . . . . . . Core 3 | . . . . . . 1 . . . . . 1 1 . . Reactor 1 | . . . . . . . . . . . 1 . . . . Propulsion 45 | 2 3 2 . 2 16 5 2 . 2 2 3 1 2 . 3 Treads 38 | 2 3 . . 2 15 5 2 . 2 1 2 1 2 . 1 Leg 1 | . . . . . . . . . . . . . . . 1 Wheel 3 | . . . . . . . . . . 1 1 . . . 1 Hover 2 | . . 2 . . . . . . . . . . . . . Flight 1 | . . . . . 1 . . . . . . . . . . Utility 92 | 2 2 3 1 3 12 12 2 1 17 7 7 3 7 3 10 Device 37 | 1 2 3 . 2 4 10 . . 7 3 2 . 2 1 . Storage 4 | 1 . . 1 . 1 1 . . . . . . . . . Processor 5 | . . . . 1 . . 1 . . . . . . . 3 Hackware 27 | . . . . . . . 1 . 8 . 3 2 4 2 7 Protection 19 | . . . . . 7 1 . 1 2 4 2 1 1 . . Artifact . | . . . . . . . . . . . . . . . . Weapon 173 | 2 2 8 1 10 24 26 2 1 22 12 17 4 18 7 17 Energy Gun 11 | . . 2 . 2 6 . . . . . . . . . 1 Energy Cannon 12 | . . . . . . . . . . . 2 1 3 3 3 Ballistic Gun 59 | 2 1 3 1 4 11 11 1 . 10 6 5 2 1 1 . Ballistic Cannon 11 | . . . . . 2 . . . . . 2 . 2 . 5 Launcher 22 | . . 2 . 4 1 5 . . 2 . 2 . 3 . 3 Special Weapon 27 | . . . . . . 1 1 . 8 3 3 1 6 1 3 Impact Weapon 28 | . 1 . . . 2 9 . 1 2 3 3 . 3 2 2 Slashing Weapon 2 | . . . . . 2 . . . . . . . . . . Piercing Weapon . | . . . . . . . . . . . . . . . . Special Melee Weapon 1 | . . 1 . . . . . . . . . . . . . Unidentified Prototypes 4 | . . 1 . . 3 . . . . . . . . . . Parts Lost 45 | . 1 2 . . 4 4 . . 3 1 2 2 2 . 24 Power 6 | . . . . . . 1 . . 1 . 1 1 1 . 1 Propulsion 7 | . . . . . . 1 . . . . 1 . 1 . 4 Utility 17 | . 1 . . . 2 1 . . . 1 . . . . 12 Weapon 14 | . . 2 . . 2 1 . . 2 . . 1 . . 6 Highest Loss Streak 15 | . 1 1 . . 2 3 . . 1 1 1 1 1 . 15 To Critical Strikes 1 | . . . . . . . . . . . . . . . 1 Average Slot Usage (%) 85 | . 99 99 100 95 92 83 80 76 83 83 83 78 71 73 56 Engine 5 | . 14 14 14 14 9 2 . . 6 7 . . . . . Core 1 | . . . . . . 6 9 7 . . . . 6 5 2 Reactor 1 | . . . . . . . . . . . 6 5 . . . Treads 17 | . 28 13 . 6 26 24 18 15 15 15 8 13 13 11 5 Hover 1 | . . 14 28 21 . . . . . . . . . . . Device 7 | . 13 14 14 10 9 13 5 . 4 4 4 . . . . Storage 8 | . 14 14 14 14 9 9 9 7 7 7 7 6 6 5 3 Processor 4 | . . . . 3 6 . 8 7 7 7 7 6 6 5 7 Hackware 9 | . . . . . . . 3 7 17 13 17 22 23 32 24 Protection 2 | . . . . . 8 5 . 7 . 3 . 2 . . . Energy Gun 1 | . . 1 . 3 8 . . . . . . . . . . Ballistic Gun 12 | . 27 19 16 15 11 12 26 16 10 11 11 7 . . . Ballistic Cannon 1 | . . . . . 2 5 . . . . . . 5 5 3 Special Weapon 1 | . . . . . . . . . 3 4 3 4 1 . . Impact Weapon 3 | . . . . . . 3 . 5 6 5 5 6 3 1 1 Naked Turns . | . . . . . . . . . . . . . . . . Heaviest Build 199 | 15 15 29 18 27 71 163 163 181 179 186 199 189 196 184 184 Greatest Support 150 | 40 40 40 24 40 84 95 97 95 97 92 97 150 150 145 150 Greatest Overweight (x) 14 | . . 1 . 1 . 2 1 1 1 2 2 1 1 1 14 Average Overweight (x) . | . . . . . . . 1 1 1 1 1 1 1 1 1 Largest Inventory Capacity 30 | 8 8 8 10 10 15 30 30 30 30 30 30 30 30 30 30 Average Capacity 21 | 7 8 8 9 10 14 18 30 30 30 30 30 30 30 30 21 Most Carried 30 | 4 8 8 9 10 15 30 30 30 30 30 30 30 30 30 30 Average Carried 20 | 2 7 7 8 9 14 17 29 28 29 29 29 29 28 29 20 Final Capacity 30 | 8 8 8 10 10 15 30 30 30 30 30 30 30 30 30 5 Final Carried 30 | 4 8 8 9 10 15 30 30 30 30 29 30 29 30 30 5 Class Distribution -------------------- 31% | Bothacker-Mutant 15% | Mutant 15% | Scavenger-Skirmisher 13% | Scavenger-Mutant 11% | Botlord-Mutant 5% | Bothacker-Skirmisher Dominant Class ---------------- Mutant | -10/Materials Mutant | -10/Mines Scavenger-Mutant | -10/Exiles Scavenger-Mutant | -9/Mines Scavenger-Skirmisher | -8/Materials Mutant | -8/Garrison Bothacker-Skirmisher | -8/Materials Bothacker-Mutant | -7/Factory Bothacker-Mutant | -7/Garrison Bothacker-Mutant | -7/Factory Bothacker-Mutant | -7/Garrison Botlord-Mutant | -6/Factory Bothacker-Mutant | -6/Garrison Botlord-Skirmisher | -5/Factory Botlord-Mutant | -5/Garrison Resources | -11 -10 -10 -10 -9 -8 -8 -8 -7 -7 -7 -7 -6 -6 -5 -5 ----------- Run | Scr Mat Min Exi Min Mat Gar Mat Fac Gar Fac Gar Fac Gar Fac Gar Matter Collected 9279 | 296 672 294 20 262 1210 1853 202 24 862 232 1188 299 845 483 537 Remotely 154 | 129 25 . . . . . . . . . . . . . . Salvage Created 9292 | 104 697 280 . 155 2140 1591 133 97 695 312 795 469 503 653 668 Parts 471 | 5 41 17 . 22 117 85 7 2 29 15 39 16 25 20 31 Haulers Intercepted 8 | . 1 . . . 6 . . . . . . 1 . . . Recyclers Shooed 3 | . . . . . 2 . . . . . . 1 . . . Parts Field Recycled . | . . . . . . . . . . . . . . . . Retrieved Matter . | . . . . . . . . . . . . . . . . Parts Self-Destructed . | . . . . . . . . . . . . . . . . Prevented . | . . . . . . . . . . . . . . . . Kills | -11 -10 -10 -10 -9 -8 -8 -8 -7 -7 -7 -7 -6 -6 -5 -5 ------- Run | Scr Mat Min Exi Min Mat Gar Mat Fac Gar Fac Gar Fac Gar Fac Gar Combat Hostiles Destroyed 211 | . 14 14 . 15 31 42 2 . 12 4 24 5 20 6 22 Melee 6 | . . . . . . 1 . . 1 . 3 1 . . . Guns 83 | . 14 8 . 3 24 7 2 . 10 3 10 2 . . . Cannons 52 | . . . . . 5 16 . . . . 1 . 14 5 11 AOE 65 | . . 6 . 12 2 17 . . . 1 10 . 6 . 11 Classes Destroyed 20 | 2 5 2 . . 6 3 . . 1 . . . 1 . . Worker 5 | . 1 1 . 1 2 . . . . . . . . . . Builder 4 | . 1 1 . . . . . 1 . . . 1 . . . Tunneler 3 | 2 . . . . . . . . . . . 1 . . . Hauler 8 | . 1 . . . 6 . . . . . . 1 . . . Recycler 15 | 1 . 1 . . 6 . . 1 . 2 . 1 . 3 . Operator 1 | . . . . . 1 . . . . . . . . . . Watcher 9 | . 2 . . . 5 . . . . . . 1 . 1 . Swarmer 49 | . . 3 . 13 3 17 . . . . 8 2 3 . . Cutter 7 | . . . . . . 4 . . . . . . . . 3 Grunt 89 | . 14 2 . 2 17 6 . . 5 2 15 1 7 4 14 Brawler 2 | . . . . . 1 1 . . . . . . . . . Duelist 5 | . . . . . 2 2 . . . . . . . . 1 Sentry 22 | . . . . . 6 5 . . 4 . . 1 6 . . Demolisher 2 | . . . . . . . . . . . . . 2 . . Specialist 5 | . . . . . . 4 . . . . . . . . 1 Hunter 10 | . . . . . 1 2 1 . . . 1 . 1 . 4 Programmer 9 | . . . . . . 1 . . 2 2 . 1 1 2 . Heavy 2 | . . . . . 1 . 1 . . . . . . . . Behemoth 1 | . . . . . . . . . 1 . . . . . . Assembled 9 | . . 9 . . . . . . . . . . . . . Best Kill Streak 9 | 2 3 4 . 4 5 5 1 1 2 3 8 4 3 3 9 Combat Bots Only 9 | . 3 3 . 3 4 5 1 . 2 2 8 3 3 2 9 Max Kills in Single Turn 5 | 1 2 3 . 4 1 3 1 1 1 1 3 1 3 1 5 Gunslinging . | . . . . . . . . . . . . . . . . Exploded 4 | . . 3 . 3 1 3 . . . 1 3 . 3 . 4 Melee 1 | . . . . . . 1 . . 1 . 1 1 . . . Uniques/NPCs Destroyed . | . . . . . . . . . . . . . . . . Combat | -11 -10 -10 -10 -9 -8 -8 -8 -7 -7 -7 -7 -6 -6 -5 -5 -------- Run | Scr Mat Min Exi Min Mat Gar Mat Fac Gar Fac Gar Fac Gar Fac Gar Damage Taken 13615 | . 667 282 . 226 1955 2026 122 . 960 305 1479 1175 1410 86 2922 Core 2003 | . 91 22 . 46 195 227 53 . 86 30 112 41 100 . 1000 Absorbed by Shields 627 | . . . . . . 35 . . 18 25 80 . 203 10 256 Reduced by Siege Mode 304 | . . . . . . . . . . 33 77 . 194 . . Regen/Repaired (Parts) 1235 | . . . . . 731 . . 504 . . . . . . . Core Remaining (%) 59 | 100 . . . 36 . . 13 . . . 67 . 83 . . Volleys Fired 666 | 6 69 36 . 34 110 123 8 . 59 14 58 28 55 14 52 Largest 3 | 2 2 2 . 2 3 3 3 . 3 3 3 2 2 2 2 Hottest 225 | 40 40 60 . 121 184 94 94 . 94 103 158 123 171 171 225 Shots Fired 1193 | 12 138 63 . 47 288 234 22 . 89 32 86 41 61 23 57 Gun 851 | 12 138 58 . 36 258 148 21 . 59 31 55 25 6 2 2 Cannon 197 | . . . . . 27 68 . . . . 2 2 39 19 40 Launcher 52 | . . 5 . 11 3 13 . . 1 . 7 . 4 . 8 Special 93 | . . . . . . 5 1 . 29 1 22 14 12 2 7 Kinetic 871 | 12 138 40 . 29 157 216 21 . 59 31 55 25 39 14 35 Thermal 137 | . . . . 7 128 . . . . . . . . . 2 Explosive 45 | . . 5 . 11 3 6 . . 1 . 7 . 4 . 8 Electromagnetic 47 | . . 18 . . . 7 . . . . 2 2 6 7 5 Robot Hit Streak 50 | 3 15 8 . 7 24 50 12 . 23 23 26 13 31 34 12 Robot Miss Streak 5 | 3 5 3 . 4 4 3 4 . 2 1 2 2 1 1 2 Penetration Max 1 | . . . . . . 1 . . . . . . . . . Secondary Targets 3 | . . . . . 3 . . . . . . . . . . Max Gunslinging Chain 1 | . . . . . 1 . . . . . . . . . . Shots Hit Robots 889 | 6 96 36 4 19 211 176 13 2 78 27 67 39 52 21 42 Core Hits 440 | 3 38 27 . 24 121 77 2 1 18 7 38 4 32 8 40 Critical Kills 9 | . . 1 . 1 1 4 . . 1 . 1 . . . . Critical Parts Destroyed 11 | . . . . . 1 4 . . 3 . 1 2 . . . Critical Strikes 49 | . . 2 . 1 11 18 . . 4 . 2 2 1 2 6 Burn 7 | . . . . . 7 . . . . . . . . . . Destroy 15 | . . 1 . 1 2 8 . . 3 . . . . . . Blast 21 | . . . . . 2 10 . . . . . . 1 2 6 Corrupt 1 | . . 1 . . . . . . . . . . . . . Smash 5 | . . . . . . . . . 1 . 2 2 . . . Melee Attacks 135 | . 1 . 4 . 8 28 . 9 32 7 26 11 4 2 3 Impact 127 | . 1 . . . 4 28 . 9 32 7 26 11 4 2 3 Slashing 4 | . . . . . 4 . . . . . . . . . . Piercing . | . . . . . . . . . . . . . . . . Sneak Attacks 20 | . . . 4 . . 1 . 2 2 2 2 5 . 2 . Combat Hostiles 6 | . . . . . . 1 . . 2 . 2 1 . . . Follow-up Attacks . | . . . . . . . . . . . . . . . . Damage Inflicted 28024 | 81 1200 748 . 910 4284 6265 225 184 1385 1027 2615 1347 3182 1188 3383 Guns 11381 | 81 1177 385 . 165 3019 2752 225 . 1075 680 966 601 150 63 42 Cannons 8835 | . . . . . 859 2349 . . . . 77 81 2513 945 2011 Explosions 5773 | . . 363 . 739 294 1051 . . 7 206 1302 . 519 . 1292 Melee 1803 | . . . . . 42 107 . 184 303 141 270 576 . 180 . Ramming 232 | . 23 . . 6 70 6 . . . . . 89 . . 38 Kinetic 17483 | 81 1177 276 . 103 2111 5101 225 . 1075 680 966 601 2472 764 1851 Thermal 1917 | . . . . 108 1767 . . . . . . . . . 42 Explosive 5369 | . . 363 . 693 294 693 . . 7 206 1302 . 519 . 1292 Electromagnetic 1220 | . . 109 . . . 358 . . . . 77 81 191 244 160 Impact 1761 | . . . . . . 107 . 184 303 141 270 576 . 180 . Slashing 42 | . . . . . 42 . . . . . . . . . . Piercing . | . . . . . . . . . . . . . . . . Highest Corruption 11 | . . . . . 1 1 1 . 1 2 2 2 4 . 11 Average Corruption 1 | . . . . . 1 1 1 . 1 1 2 1 3 . 7 Corruption Purged . | . . . . . . . . . . . . . . . . Corruption Blocked . | . . . . . . . . . . . . . . . . Effects 120 | . . . . . 3 22 2 . 6 8 30 5 33 . 11 Message Errors 38 | . . . . . 1 11 . . 2 3 9 2 8 . 2 Matter Fused 18 | . . . . . . 3 . . . 2 7 . 5 . 1 Heat Flow Errors 20 | . . . . . 1 3 . . 1 . 5 1 7 . 2 Energy Discharges 16 | . . . . . . 1 1 . 2 1 3 1 4 . 3 Data Loss (minor) 15 | . . . . . . 2 1 . . 2 3 . 5 . 2 Data Loss (major) 6 | . . . . . . 2 . . . . 1 . 2 . 1 Misfires 2 | . . . . . 1 . . . . . 1 . . . . Alerts 3 | . . . . . . . . . 1 . 1 . 1 . . Weapon Failures 2 | . . . . . . . . . . . . 1 1 . . Overload Shots 2 | . . . . . . . . . . . . . . . 2 Effects 1 | . . . . . . . . . . . . . . . 1 Heat Surge 1 | . . . . . . . . . . . . . . . 1 Overflow Damage 1708 | . . 20 . 10 111 265 . 100 49 155 152 407 106 198 135 Projectiles 619 | . . . . . 82 182 . . . . . . 106 128 121 Explosions 242 | . . 20 . 10 7 21 . . . 69 101 . . . 14 Melee 847 | . . . . . 22 62 . 100 49 86 51 407 . 70 . Knockbacks 39 | . . . . . 6 13 . . . . . 4 6 3 7 Impact 6 | . . . . . 1 . . . . . . 4 . 1 . Kinetic 32 | . . . . . 4 13 . . . . . . 6 2 7 Secondary 1 | . . . . . 1 . . . . . . . . . . Self-Inflicted Damage 249 | . . 25 . 33 . 31 . . . . 58 . . . 102 Shots 11 | . . 1 . 2 . 1 . . . . 3 . . . 4 Rammed 25 | . 4 . . 2 8 1 . . . . . 8 . . 2 Targets Rammed 29 | . 5 . . 2 9 2 . . . . . 9 . . 2 Kicked . | . . . . . . . . . . . . . . . . Crushed 4 | . 1 . . . 1 1 . . . . . 1 . . . Highest Temperature 414 | . 20 80 . 126 231 376 63 . 176 114 291 224 338 153 414 Average Temperature 76 | . 6 29 . 47 46 108 33 . 42 58 101 51 90 53 113 Received Heat Transfer 4036 | . 387 112 . 48 792 484 18 . 222 93 636 231 433 22 558 Effects 7 | . . . . . . 2 . . . . 4 . 1 . . Energy Bleed 2 | . . . . . . 1 . . . . 1 . . . . Interference 5 | . . . . . . 1 . . . . 3 . 1 . . Siege Activations 11 | . . . . . . . . . . 2 3 . 3 3 . Total Turns 203 | . . . . . . . . . . 29 53 . 91 30 . Longest Duration 50 | . . . . . . . . . . 23 27 . 50 20 . Robots Corrupted 3 | . . . . . . 1 . . . . . 1 . 1 . Combat Hostiles 3 | . . . . . . 1 . . . . . 1 . 1 . Parts Fried 14 | . . . . . . 2 . 1 . 1 2 5 . 3 . Impact Corruptions 25 | . . . . . 1 2 . 3 2 2 2 11 . 2 . Robots Melted . | . . . . . . . . . . . . . . . . Combat Hostiles . | . . . . . . . . . . . . . . . . Parts Melted 9 | . . . . . 6 . . . . . . . . . 3 Heat Transferred 4456 | . . . . 231 4175 . . . . . . . . . 50 Parts Sabotaged . | . . . . . . . . . . . . . . . . Parts Stolen . | . . . . . . . . . . . . . . . . Parts Stripped . | . . . . . . . . . . . . . . . . Power Chain Reactions . | . . . . . . . . . . . . . . . . Missiles Intercepted . | . . . . . . . . . . . . . . . . Alert | -11 -10 -10 -10 -9 -8 -8 -8 -7 -7 -7 -7 -6 -6 -5 -5 ------- Run | Scr Mat Min Exi Min Mat Gar Mat Fac Gar Fac Gar Fac Gar Fac Gar Peak Influence 2632 | 15 300 215 . 521 584 2632 1603 679 2015 1163 2403 1418 1597 999 1091 Initial 1283 | . 9 63 . . 202 379 1283 649 354 1057 814 1261 947 837 559 Average 941 | 6 146 93 . 308 359 1602 1442 604 1154 1034 1616 1281 1255 892 835 Maximum Alert Level 5 | . 1 1 . 2 2 5 5 2 5 4 5 4 4 3 3 Low Security (%) 11 | 100 62 93 . 33 4 . . . . . . . . . . Level 1 17 | . 37 6 . 19 63 2 . . 8 . . . . . . Level 2 14 | . . . . 47 31 5 . 100 12 . . . . . 27 Level 3 17 | . . . . . . 19 . . 28 82 17 . 14 100 72 Level 4 22 | . . . . . . 24 69 . 28 17 30 100 85 . . Level 5 16 | . . . . . . 48 30 . 21 . 52 . . . . High Security . | . . . . . . . . . . . . . . . . Max Security . | . . . . . . . . . . . . . . . . Squads Dispatched 24 | . 4 . . 1 6 . 2 . . 3 . 7 . 1 . Investigation 4 | . 3 . . . 1 . . . . . . . . . . Extermination 4 | . . . . . . . . . . 2 . 1 . 1 . Reinforcement 10 | . 1 . . 1 3 . 2 . . . . 3 . . . Assault 2 | . . . . . 1 . . . . . . 1 . . . Garrison 4 | . . . . . 1 . . . . 1 . 2 . . . Intercept . | . . . . . . . . . . . . . . . . Searches Triggered . | . . . . . . . . . . . . . . . . Construction Impeded 3 | . . . . 1 1 . . . . . . 1 . . . Haulers Reinforced . | . . . . . . . . . . . . . . . . Active Scanning Responses . | . . . . . . . . . . . . . . . . Cargo Convoy Interrupts . | . . . . . . . . . . . . . . . . Stealth | -11 -10 -10 -10 -9 -8 -8 -8 -7 -7 -7 -7 -6 -6 -5 -5 --------- Run | Scr Mat Min Exi Min Mat Gar Mat Fac Gar Fac Gar Fac Gar Fac Gar Distress Signals 4 | . . . . . 2 . . . . . . . . 2 . Communications Jammed 135 | . . . . . . . . . . . . 121 7 7 . Distress Signals 135 | . . . . . . . . . . . . 121 7 7 . Times Spotted 334 | . 21 15 . 19 58 41 11 . 36 4 35 30 24 9 31 Peak Tracking Total 9 | . 3 3 . 4 4 5 3 . 8 2 6 7 6 2 9 Tactical Retreats 24 | . . 1 . 2 2 1 . . 5 . 4 3 1 . 5 Traps | -11 -10 -10 -10 -9 -8 -8 -8 -7 -7 -7 -7 -6 -6 -5 -5 ------- Run | Scr Mat Min Exi Min Mat Gar Mat Fac Gar Fac Gar Fac Gar Fac Gar Traps Triggered 21 | . 1 . . . . 4 . . 3 . 7 . 3 . 3 Indirectly . | . . . . . . . . . . . . . . . . Trap Hack Attempts . | . . . . . . . . . . . . . . . . Triggered . | . . . . . . . . . . . . . . . . Disarmed . | . . . . . . . . . . . . . . . . Reprogrammed . | . . . . . . . . . . . . . . . . Reused . | . . . . . . . . . . . . . . . . Traps Extracted . | . . . . . . . . . . . . . . . . Installed . | . . . . . . . . . . . . . . . . Triggered 1 | . . . . . . . . . . . 1 . . . . Most Traps Carried 1 | . . . . . . . . . . . 1 1 1 1 1 Machines | -11 -10 -10 -10 -9 -8 -8 -8 -7 -7 -7 -7 -6 -6 -5 -5 ---------- Run | Scr Mat Min Exi Min Mat Gar Mat Fac Gar Fac Gar Fac Gar Fac Gar Machines Disabled 50 | . . 1 . 1 2 9 6 . 5 10 9 2 2 . 3 Max in Single Turn 10 | . . 1 . 1 1 1 . . 1 10 1 1 1 . 1 Garrison Relay 20 | . . . . . . 5 . . 5 . 5 . 2 . 3 Machines Sabotaged . | . . . . . . . . . . . . . . . . Garrisons Compromised . | . . . . . . . . . . . . . . . . Overloaded Fab Kills . | . . . . . . . . . . . . . . . . Hacking | -11 -10 -10 -10 -9 -8 -8 -8 -7 -7 -7 -7 -6 -6 -5 -5 --------- Run | Scr Mat Min Exi Min Mat Gar Mat Fac Gar Fac Gar Fac Gar Fac Gar Machines Accessed 44 | . 9 1 2 . 10 2 2 5 2 4 2 1 2 1 1 Terminals 29 | . 7 . . . 6 2 2 3 2 2 2 . 2 . 1 Fabricators . | . . . . . . . . . . . . . . . . Repair Stations 4 | . . . . . 2 . . 1 . 1 . . . . . Recycling Units 2 | . 2 . . . . . . . . . . . . . . Scanalyzers 1 | . . . . . 1 . . . . . . . . . . Garrison Access 5 | . . . . . 1 . . 1 . 1 . 1 . 1 . Total Hacks 106 | . 33 1 2 . 33 2 5 10 3 6 3 1 4 1 2 Successful 62 | . 19 1 2 . 18 2 1 6 2 4 2 1 2 1 1 Failed 43 | . 13 . . . 15 . 4 4 1 2 1 . 2 . 1 Catastrophic 12 | . 2 . . . 5 . 1 1 1 1 . . . . 1 Database Lockouts 1 | . 1 . . . . . . . . . . . . . . Manual 35 | . 17 . 1 . 7 . 5 4 . 1 . . . . . Terminals 74 | . 30 . . . 17 2 5 5 3 3 3 . 4 . 2 Fabricators . | . . . . . . . . . . . . . . . . Repair Stations 18 | . . . . . 13 . . 3 . 2 . . . . . Recycling Units 3 | . 3 . . . . . . . . . . . . . . Scanalyzers 2 | . . . . . 2 . . . . . . . . . . Garrison Access 6 | . . . . . 1 . . 2 . 1 . 1 . 1 . Terminal Hacks 32 | . 13 1 2 . 4 2 1 1 2 1 2 . 2 . 1 Record 1 | . . . 1 . . . . . . . . . . . . Part Schematic 1 | . 1 . . . . . . . . . . . . . . Robot Analysis 1 | . 1 . . . . . . . . . . . . . . Prototype ID Bank 4 | . 3 . . . 1 . . . . . . . . . . Open Door 3 | . . 1 . . . . . . 1 . . . 1 . . Open DSF 1 | . . . . . . . . . . 1 . . . . . Emergency Access Points 4 | . . . . . . 1 . . 1 . 1 . . . 1 Unreport Threat 2 | . . . . . 1 . 1 . . . . . . . . Locate Traps 7 | . 4 . . . 2 . . 1 . . . . . . . Recall Reinforcements 1 | . 1 . . . . . . . . . . . . . . Hauler Manifests 1 | . 1 . . . . . . . . . . . . . . Registered Components 1 | . 1 . . . . . . . . . . . . . . Zone Layout 1 | . 1 . . . . . . . . . . . . . . Garrison Registry 1 | . . . . . . 1 . . . . . . . . . Patrol Navigation 2 | . . . . . . . . . . . 1 . 1 . . EX-Prototype ID Bank 1 | . . . 1 . . . . . . . . . . . . Fabricator Hacks . | . . . . . . . . . . . . . . . . Repair Station Hacks 14 | . . . . . 11 . . 2 . 1 . . . . . Scan Component 8 | . . . . . 6 . . 1 . 1 . . . . . Repair 6 | . . . . . 5 . . 1 . . . . . . . Recycling Unit Hacks 1 | . 1 . . . . . . . . . . . . . . Retrieve Matter 1 | . 1 . . . . . . . . . . . . . . Scanalyzer 2 | . . . . . 2 . . . . . . . . . . Insert Component 1 | . . . . . 1 . . . . . . . . . . Analyze 1 | . . . . . 1 . . . . . . . . . . Garrison Access Hacks 6 | . . . . . 1 . . 2 . 1 . 1 . 1 . Unlock Access 5 | . . . . . 1 . . 1 . 1 . 1 . 1 . Coupler Status 1 | . . . . . . . . 1 . . . . . . . Unauthorized Hacks 7 | . 5 . . . . . . 1 . 1 . . . . . Terminals 5 | . 3 . . . . . . 1 . 1 . . . . . Botnet 4 | . 2 . . . . . . 1 . 1 . . . . . Operators 1 | . 1 . . . . . . . . . . . . . . Fabricators . | . . . . . . . . . . . . . . . . Repair Stations . | . . . . . . . . . . . . . . . . Recycling Units 2 | . 2 . . . . . . . . . . . . . . Tunnel 2 | . 2 . . . . . . . . . . . . . . Scanalyzers . | . . . . . . . . . . . . . . . . Garrison Access . | . . . . . . . . . . . . . . . . Data Cores Recovered . | . . . . . . . . . . . . . . . . Used . | . . . . . . . . . . . . . . . . Hacking Detections 32 | . 5 . . . 9 2 2 4 2 3 1 1 2 . 1 Full Trace Events 5 | . 1 . . . 2 . . . 1 . . . . . 1 Feedback Events 1 | . . . . . 1 . . . . . . . . . . Corruption 1 | . . . . . 1 . . . . . . . . . . Feedback Blocked . | . . . . . . . . . . . . . . . . Robot Schematics Acquired . | . . . . . . . . . . . . . . . . Robots Built . | . . . . . . . . . . . . . . . . Authchips . | . . . . . . . . . . . . . . . . Time . | . . . . . . . . . . . . . . . . Total Robot Build Rating . | . . . . . . . . . . . . . . . . Part Schematics Acquired 2 | . 1 . . . 1 . . . . . . . . . . Parts Built . | . . . . . . . . . . . . . . . . Authchips . | . . . . . . . . . . . . . . . . Time . | . . . . . . . . . . . . . . . . Total Part Build Rating . | . . . . . . . . . . . . . . . . Parts Repaired 6 | . . . . . 5 . . 1 . . . . . . . Time 230 | . . . . . 208 . . 22 . . . . . . . Parts Recycled . | . . . . . . . . . . . . . . . . Recycled Matter . | . . . . . . . . . . . . . . . . Retrieved Matter . | . . . . . . . . . . . . . . . . Retrieved Components . | . . . . . . . . . . . . . . . . Parts Scanalyzed 1 | . . . . . 1 . . . . . . . . . . Part Schematics Acquired 1 | . . . . . 1 . . . . . . . . . . Parts Damaged . | . . . . . . . . . . . . . . . . Bothacking | -11 -10 -10 -10 -9 -8 -8 -8 -7 -7 -7 -7 -6 -6 -5 -5 ------------ Run | Scr Mat Min Exi Min Mat Gar Mat Fac Gar Fac Gar Fac Gar Fac Gar Used RIF Installer 6 | . . . . . . 1 . . 2 . 1 . 1 . 1 Hotswap 1 | . . . . . . . . . 1 . . . . . . Command Fork 2 | . . . . . . . . . . . 1 . 1 . . Signal Jammer 1 | . . . . . . . . . 1 . . . . . . Alert ID Control 1 | . . . . . . . . . . . . . . . 1 Robots Hacked 46 | . . . 4 . . . 1 . 14 . 7 7 6 1 6 Non-combat 7 | . . . 3 . . . . . . . . 3 1 . . Combat 39 | . . . 1 . . . 1 . 14 . 7 4 5 1 6 Robot Hacks Applied 48 | . . . 4 . . . 1 . 14 . 7 8 6 2 6 parse_system 7 | . . . 4 . . . . . 1 . 1 . . 1 . find_fabricator 1 | . . . . . . . . . . . . 1 . . . disarm_traps 1 | . . . . . . . . . . . . 1 . . . map_route 1 | . . . . . . . . . . . . 1 . . . find_garrison 2 | . . . . . . . . . . . . 1 . 1 . disrupt_area 1 | . . . . . . . . . . . . . 1 . . overload_power 2 | . . . . . . . . . . . . . . . 2 amplify_resonance 2 | . . . . . . . . . . . 2 . . . . wipe_record 1 | . . . . . . . . . 1 . . . . . . reboot_system 3 | . . . . . . . 1 . 1 . . . . . 1 go_dormant 1 | . . . . . . . . . 1 . . . . . . overwrite_iff 21 | . . . . . . . . . 8 . 3 3 4 . 3 formatsys_high 5 | . . . . . . . . . 2 . 1 1 1 . . Relay Couplers Released 84 | . . . . . . 20 . . 22 . 24 . 8 . 10 Machine Destruction 84 | . . . . . . 20 . . 22 . 24 . 8 . 10 Attached 27 | . . . . . . . 1 . 8 . 3 2 4 2 7 Fabnet Peak Effective % . | . . . . . . . . . . . . . . . . Robots Rewired 19 | . . . . . . 4 . . 3 . 9 . 2 . 1 Allies Hacked . | . . . . . . . . . . . . . . . . Hacks Repelled . | . . . . . . . . . . . . . . . . Allies | -11 -10 -10 -10 -9 -8 -8 -8 -7 -7 -7 -7 -6 -6 -5 -5 -------- Run | Scr Mat Min Exi Min Mat Gar Mat Fac Gar Fac Gar Fac Gar Fac Gar Total Allies 53 | . . . . 1 . 4 . . 17 . 13 5 7 . 6 Largest Group 10 | . . . . 1 1 4 4 . 3 . 10 7 3 1 3 Highest-Rated Group 254 | . . . . 31 31 84 84 . 160 . 254 187 93 40 104 Highest-Rated Ally 73 | . . . . 31 31 21 21 . 73 . 43 43 46 40 46 Total Orders 7 | . . 1 . . . 2 2 . . . . . 2 . . STAY 3 | . . . . . . 1 1 . . . . . 1 . . FOLLOW 3 | . . . . . . 1 1 . . . . . 1 . . RETURN 1 | . . 1 . . . . . . . . . . . . . Ally Attacks 294 | . . . . 5 12 2 72 . 73 . 50 54 13 . 13 Total Damage 7650 | . . . . 86 149 37 1502 . 2438 . 1142 1580 543 . 173 Kills 59 | . . . . 4 3 1 14 . 21 . 6 9 1 . . Allies Corrupted . | . . . . . . . . . . . . . . . . Allies Melted 1 | . . . . . . . 1 . . . . . . . . Intel | -11 -10 -10 -10 -9 -8 -8 -8 -7 -7 -7 -7 -6 -6 -5 -5 ------- Run | Scr Mat Min Exi Min Mat Gar Mat Fac Gar Fac Gar Fac Gar Fac Gar Robot Analysis Total 1 | . 1 . . . . . . . . . . . . . . Derelict Logs Recovered 4 | . . 2 . 2 . . . . . . . . . . . Drone Launches 1 | . . 1 . . . . . . . . . . . . . Drone Recoveries 1 | . . 1 . . . . . . . . . . . . . Exploration | -11 -10 -10 -10 -9 -8 -8 -8 -7 -7 -7 -7 -6 -6 -5 -5 ------------- Run | Scr Mat Min Exi Min Mat Gar Mat Fac Gar Fac Gar Fac Gar Fac Gar Turns Passed 20983 | 138 1645 846 270 738 3934 2960 431 638 2679 682 2512 998 1247 476 789 Spaces Moved 9136 | 67 837 559 343 659 1780 1315 163 246 964 230 728 343 395 136 371 Core 190 | 1 . . . . . . . . . . . . . . 189 Treads 7567 | 66 837 162 . 98 1780 1315 163 246 964 230 728 343 395 136 104 Legs 39 | . . . . . . . . . . . . . . . 39 Wheels 39 | . . . . . . . . . . . . . . . 39 Hover 1301 | . . 397 343 561 . . . . . . . . . . . Flight . | . . . . . . . . . . . . . . . . Fastest Speed 50 | 50 160 76 76 76 160 163 232 245 232 247 232 240 240 255 50 Average Speed 185 | 158 160 109 76 88 162 181 241 245 241 247 300 240 254 255 145 Slowest Speed 350 | 160 160 160 76 240 163 326 245 245 247 332 320 240 255 255 350 Overloaded Moves . | . . . . . . . . . . . . . . . . Propulsion Burnouts . | . . . . . . . . . . . . . . . . Robots Hopped . | . . . . . . . . . . . . . . . . Cave-ins Triggered 1 | . . . . . . . . . . . . . . . 1 Exploration Rate (%) 56 | 4 97 96 70 91 94 92 24 10 90 12 91 14 54 5 54 Regions Visited 15 Branch Regions 3 Pre-discovered Areas 3 | . 2 . 1 . . . . . . . . . . . . Known Exits Taken 6 | . . . . . 1 . 1 1 . 1 . 1 . 1 . Unknown Exits Taken 5 | 1 1 1 1 1 . . . . . . . . . . . Scrap Searched 2 | . . 1 . 1 . . . . . . . . . . . Spaces Dug 171 | . 1 . . 46 9 29 . 7 25 5 23 3 10 1 12 Terrain Destroyed 425 | . 1 48 . 98 38 68 5 7 27 19 49 10 22 5 28 Melee 70 | . 1 . . . 6 19 . 7 17 5 10 3 2 . . Projectile 77 | . . . . . 10 32 5 . 2 5 3 7 3 5 5 AOE 278 | . . 48 . 98 22 17 . . 8 9 36 . 17 . 23 Terrain Rammed 4 | . . . . . . . . . . . . . . . 4 Walls Destroyed . | . . . . . . . . . . . . . . . . Machines Disabled . | . . . . . . . . . . . . . . . . Actions | -11 -10 -10 -10 -9 -8 -8 -8 -7 -7 -7 -7 -6 -6 -5 -5 --------- Run | Scr Mat Min Exi Min Mat Gar Mat Fac Gar Fac Gar Fac Gar Fac Gar Total 11735 | 84 1002 726 350 768 2579 1588 186 262 1189 294 933 450 555 230 539 Wait 1108 | . 68 112 . 46 550 31 1 2 51 13 54 44 53 65 18 Move 9124 | 66 836 558 342 658 1780 1313 162 246 963 230 727 342 394 136 371 Hop . | . . . . . . . . . . . . . . . . Pick Up 131 | 5 7 3 1 2 23 26 3 3 19 3 13 3 8 2 10 Fast Attach 75 | 6 2 3 . 5 21 6 2 . 6 1 4 2 3 1 13 Attach 49 | 1 . 2 . 2 4 5 . 1 8 2 7 1 6 2 8 Detach 21 | . . . . 2 1 2 . . 3 1 2 1 5 . 4 Swap 197 | . 6 8 2 9 30 33 4 1 28 18 17 6 19 7 9 Drop 137 | . 8 4 1 8 43 16 6 . 16 5 15 2 4 1 8 Fire 666 | 6 69 36 . 34 110 123 8 . 59 14 58 28 55 14 52 Melee 135 | . 1 . 4 . 8 28 . 9 32 7 26 11 4 2 3 Ram 6 | . . . . . . . . . . . . . . . 6 Kick . | . . . . . . . . . . . . . . . . Crush 27 | . 5 . . 2 9 2 . . . . . 9 . . . Escape Stasis 34 | . . . . . . . . . 1 . 10 . 4 . 19 Rewire 25 | . . . . . . 3 . . 3 . . 1 . . 18 Trap . | . . . . . . . . . . . . . . . . Miscellaneous . | . . . . . . . . . . . . . . . . Route ------- -11/Scrapyard -10/Materials (discovered 5 exits: *Mat x3 / *Min x2) -10/Mines (discovered 3 exits: *Mat x2 / *Exi) -10/Exiles -9/Mines (discovered 2 exits: *Mat x2) -8/Materials (discovered 4 exits: *Fac x3 / Gar) -8/Garrison (discovered 3 exits: *Mat x3) -8/Materials -7/Factory (discovered 2 exits: [*Low] / Gar) -7/Garrison (discovered 4 exits: *Fac x4) -7/Factory -7/Garrison (discovered 3 exits: *Fac x3) -6/Factory (discovered 2 exits: *Fac / Gar) -6/Garrison (discovered 2 exits: *Fac x2) -5/Factory -5/Garrison (discovered 1 exit: [*Fac]) History --------- Turn | Location | Event 43 | -11/Scrapyard | Discovered new exit (range 14) 139 | -11/Scrapyard | Entered Materials 311 | -10/Materials | Build established: Mutant 352 | -10/Materials | Central database locked down 453 | -10/Materials | Discovered new exit (range 3) 558 | -10/Materials | Discovered new exit (range 16) 830 | -10/Materials | Discovered new exit (range 3) 1102 | -10/Materials | Discovered new exit (range 16) 1349 | -10/Materials | Discovered new exit (range 13) 1784 | -10/Materials | Entered Mines 1892 | -10/Mines | Assembled infested the area 2101 | -10/Mines | Learned Materials machine intel 2250 | -10/Mines | Discovered new exit (range 8) 2258 | -10/Mines | Found the Drone Emporium 2262 | -10/Mines | Found Prototype Device 2263 | -10/Mines | Identified Sensor Drone Bay 2276 | -10/Mines | Identified exit to Materials 2297 | -10/Mines | Deemed a non-threat by the Exiles lab entrance 2297 | -10/Mines | Discovered new exit (range 5) 2335 | -10/Mines | Discovered exit to Materials (range 8) 2630 | -10/Mines | Entered Exiles 2652 | -10/Exiles | Met 8R-AWN 2664 | -10/Exiles | Build established: Scavenger-Mutant 2664 | -10/Exiles | Met EX-HEX 2712 | -10/Exiles | Met EX-DEC 2760 | -10/Exiles | Learned location of Zion (-7) 2775 | -10/Exiles | Met EX-BIN 2785 | -10/Exiles | Aligned with FarCom system 2786 | -10/Exiles | Given EX-Vault access code 2807 | -10/Exiles | Opened EX-Vault 2812 | -10/Exiles | Found Cloak of Protection 2828 | -10/Exiles | Warned to stay clear of 0b10 Research branches 2892 | -10/Exiles | Discovered new exit (range 14) 2900 | -10/Exiles | Left Exiles lab with Cloak of Protection 2900 | -10/Exiles | Entered Mines 3020 | -9/Mines | Learned 8 Materials zone layouts 3149 | -9/Mines | Core integrity fell below 50% 3156 | -9/Mines | Discovered new exit (range 3) 3200 | -9/Mines | Learned Materials trap positions 3222 | -9/Mines | A weapon hastily lodged in a ceiling crevice suddenly fell to the ground 3289 | -9/Mines | Escorted by a lone wolf Derelict 3289 | -9/Mines | Discovered new exit (range 8) 3323 | -9/Mines | Received a Rocket Launcher from a helpful Derelict 3638 | -9/Mines | Entered Materials 3638 | -8/Materials | Accompanied by 1 ally 3638 | -8/Materials | Evolved 4 slots: Propulsion x1, Utility x2, Weapon x1 3639 | -8/Materials | Identified exit to Factory 3640 | -8/Materials | Loaded intel: 13 trap records 3641 | -8/Materials | Loaded intel: 71 machine locations 4225 | -8/Materials | Build established: Scavenger-Skirmisher 4833 | -8/Materials | Discovered exit to Factory (range 16) 5955 | -8/Materials | Repaired Arm. Treads 6356 | -8/Materials | Garrison activated, responded to threat 6944 | -8/Materials | Build established: Scavenger-Mutant 7085 | -8/Materials | Repaired Hrd. Heavy Armor Plating 7238 | -8/Materials | First assault squad dispatched 7371 | -8/Materials | Repaired Hvy. Assault Cannon 7417 | -8/Materials | Repaired Med. Treads 7462 | -8/Materials | Repaired Med. Treads 7572 | -8/Materials | Identified exit to Garrison 7572 | -8/Materials | Entered Garrison 7632 | -8/Garrison | Triggered checkpoint 7662 | -8/Garrison | Triggered checkpoint 7734 | -8/Garrison | Garrison Relay disabled 7784 | -8/Garrison | Triggered checkpoint 7860 | -8/Garrison | Triggered checkpoint 8322 | -8/Garrison | Triggered checkpoint 8368 | -8/Garrison | Garrison Relay disabled 8404 | -8/Garrison | Discovered new exit (range 15) 8413 | -8/Garrison | Core integrity fell below 50% 8758 | -8/Garrison | Discovered new exit (range 8) 8782 | -8/Garrison | Triggered checkpoint 8821 | -8/Garrison | Garrison Relay disabled 8994 | -8/Garrison | Discovered new exit (range 9) 9073 | -8/Garrison | Garrison Relay disabled 9092 | -8/Garrison | Triggered checkpoint 9117 | -8/Garrison | Build established: Mutant 9157 | -8/Garrison | Triggered checkpoint 9210 | -8/Garrison | Triggered checkpoint 9212 | -8/Garrison | Garrison Relay disabled 9287 | -8/Garrison | Lost 3 parts (1n1u1w) 9474 | -8/Garrison | Discovered new exit (range 38) 9474 | -8/Garrison | Discovered new exit (range 61) 9474 | -8/Garrison | Discovered new exit (range 19) 9558 | -8/Garrison | Installed Relay Interface Framework 10107 | -8/Garrison | Build established: Hauler-Skirmisher 10532 | -8/Garrison | Entered Materials 10532 | -8/Materials | Accompanied by 4 allies 10542 | -8/Materials | Build established: Bothacker-Skirmisher 10788 | -8/Materials | Discovered exit to Factory (range 11) 10790 | -8/Materials | Core integrity fell below 20% 10963 | -8/Materials | Entered Factory 10963 | -7/Factory | Evolved 2 slots: Utility x2 11009 | -7/Factory | Repaired Hrd. Heavy Armor Plating? 11241 | -7/Factory | Discovered new exit (range 8) 11393 | -7/Factory | Build established: Bothacker-Mutant 11601 | -7/Factory | Identified exit to Garrison 11601 | -7/Factory | Entered Garrison 11746 | -7/Garrison | Triggered checkpoint 11840 | -7/Garrison | Garrison Relay disabled 11869 | -7/Garrison | Found embedded Infiltrators 12024 | -7/Garrison | Triggered checkpoint 12058 | -7/Garrison | Triggered checkpoint 12212 | -7/Garrison | Discovered new exit (range 10) 12216 | -7/Garrison | Triggered checkpoint 12333 | -7/Garrison | Garrison Relay disabled 12698 | -7/Garrison | Discovered new exit (range 13) 12907 | -7/Garrison | Expanded RIF knowledge: Signal Jamming 12959 | -7/Garrison | Triggered checkpoint 13003 | -7/Garrison | Garrison Relay disabled 13067 | -7/Garrison | Garrison Relay disabled 13203 | -7/Garrison | Rescued a captive Derelict 13204 | -7/Garrison | Rescued a captive Derelict 13333 | -7/Garrison | Triggered checkpoint 13408 | -7/Garrison | Triggered checkpoint 13461 | -7/Garrison | Garrison Relay disabled 13516 | -7/Garrison | Spotted B-75 Beast 13597 | -7/Garrison | Discovered new exit (range 10) 13608 | -7/Garrison | Triggered checkpoint 13655 | -7/Garrison | Discovered new exit (range 4) 13757 | -7/Garrison | Expanded RIF knowledge: Hotswap 13858 | -7/Garrison | Destroyed B-75 Beast 14280 | -7/Garrison | Entered Factory 14895 | -7/Factory | Garrison activated, responded to threat 14962 | -7/Factory | Identified exit to Garrison 14962 | -7/Factory | Entered Garrison 15012 | -7/Garrison | Triggered checkpoint 15080 | -7/Garrison | Garrison Relay disabled 15394 | -7/Garrison | Triggered checkpoint 15404 | -7/Garrison | Triggered checkpoint 15428 | -7/Garrison | Destroyed 8 combat bots 15432 | -7/Garrison | Triggered checkpoint 15630 | -7/Garrison | Triggered checkpoint 15662 | -7/Garrison | Garrison Relay disabled 15917 | -7/Garrison | Discovered new exit (range 14) 15961 | -7/Garrison | Garrison Relay disabled 16279 | -7/Garrison | Garrison Relay disabled 16301 | -7/Garrison | Triggered checkpoint 16352 | -7/Garrison | Discovered new exit (range 9) 16463 | -7/Garrison | Expanded RIF knowledge: Command Fork 16757 | -7/Garrison | Build established: Botlord-Mutant 16961 | -7/Garrison | Discovered new exit (range 10) 17092 | -7/Garrison | Triggered checkpoint 17135 | -7/Garrison | Garrison Relay disabled 17474 | -7/Garrison | Entered Factory 17474 | -6/Factory | Accompanied by 7 allies 17474 | -6/Factory | Evolved 2 slots: Propulsion x1, Utility x1 17715 | -6/Factory | Discovered new exit (range 3) 17824 | -6/Factory | First assault squad dispatched 18320 | -6/Factory | Garrison activated, responded to threat 18401 | -6/Factory | Build established: Bothacker-Mutant 18448 | -6/Factory | Identified exit to Garrison 18472 | -6/Factory | Entered Garrison 18535 | -6/Garrison | Triggered checkpoint 18850 | -6/Garrison | Triggered checkpoint 19055 | -6/Garrison | Discovered new exit (range 15) 19170 | -6/Garrison | Triggered checkpoint 19251 | -6/Garrison | Garrison Relay disabled 19385 | -6/Garrison | Triggered checkpoint 19550 | -6/Garrison | Triggered checkpoint 19588 | -6/Garrison | Garrison Relay disabled 19653 | -6/Garrison | Discovered new exit (range 14) 19697 | -6/Garrison | Expanded RIF knowledge: Command Fork 19719 | -6/Garrison | Entered Factory 19719 | -5/Factory | Accompanied by 1 ally 19719 | -5/Factory | Evolved 2 slots: Utility x2 20195 | -5/Factory | Identified exit to Garrison 20195 | -5/Factory | Entered Garrison 20244 | -5/Garrison | Expanded RIF knowledge: Alert ID Control 20306 | -5/Garrison | Triggered checkpoint 20370 | -5/Garrison | Garrison Relay disabled 20410 | -5/Garrison | Garrison Relay disabled 20514 | -5/Garrison | Triggered checkpoint 20517 | -5/Garrison | Triggered checkpoint 20566 | -5/Garrison | Destroyed 9 combat bots 20614 | -5/Garrison | Build established: Botlord-Mutant 20637 | -5/Garrison | Crushed by falling debris 20731 | -5/Garrison | Lost 15 parts (1p2n8u3w) 20797 | -5/Garrison | Discovered new exit (range 13) 20819 | -5/Garrison | Core integrity fell below 50% 20840 | -5/Garrison | Core integrity fell below 20% 20852 | -5/Garrison | System corruption reached 10% 20882 | -5/Garrison | Lost 6 parts (4u2w) 20882 | -5/Garrison | Garrison Relay disabled 20912 | -5/Garrison | Triggered checkpoint 20977 | -5/Garrison | Build established: Mutant 20984 | -5/Garrison | Destroyed by Y-64 Sentinel with Wave Gun Last Messages --------------- 20939_ Acquired Relay Coupler [Sentry]. 20948_ Dropped Variable Charge Gun. 20949_ System corrupted: Substantial component data lost. 20953_ Acquired Hvy. Mass Driver. 20956_ Dropped Hvy. Mass Driver. 20956_ Acquired Hvy. Mass Driver. 20968_ Acquired 1 matter. 20969_ Acquired 12 matter. 20972_ Acquired 6 matter. 20980_ System corrupted: Energy discharge (-27). 20981_ Kicked Wall. 20981_ Destabilizing: System interference. 20981_ Adv. Targeting Computer temporarily disabled. 20981_ Targeting Computer temporarily disabled. 20981_ Destabilizing: System interference. 20981_ Enh. Optical Array temporarily disabled. 20983_ Kicked Wall. 20983_ Destabilizing: Core damaged (-30). 20983_ Destabilizing: System interference. 20983_ Targeting Computer temporarily disabled. Map ----- +----------------------------------------------------+ | ??????????????????????????????????????????? | | ???????+??????????????????????????????????? | | ??????????????????????????????????????????? | | ??????????????????????????????????????????? | | ??????????????????????????????????????????? | | #?????????????????????????????????????????? | | ####??????????????????????????????????????? | | ???????????????????????????????????????? | | ????????????????????????????????????????? | | #?????????????????????????????????????????? | | #?????????????????????????????????????????? | | "?????????????????????????????????????????? | | "?????????????????????????????????????????? | | "?????????????????????????????????????????? | | "?????????????????????????????????????????? | | #?????????????????????????????????????????? | | ##########??????????Y?????????????????????? | | #??????????+?????????????????????? | | +????????????????????????????????? | | ####+## #????????????????????????????????? | | #?????# #????????????????????????????????? | | ??????# #?????????????????+??????????????? | | ??????# #????????##+?????????????????????? | | ??????# #????????# ????????????????????? | | ??????# #???###### ##### ######????????? | | ??????+ +???+ [@ Y#???????? | | ??????# #???# ######### ###### Y#???????? | | ####### #???# T#??????# # #??????????????? | | ##### ##??????# !#??????????????? | | #??????## [#??????????????? | | ####### #######??????#" #??????????????? | | ??????# #?????########*[#"#??????????????? | | ??????# #?????# [[ +%###??????????????? | | ??????# #?????# ####????????????????? | | ??????# #?????# " " #???????????????????? | | ???#### #?????# "]]" #???????????????????? | | ???#!!# #?????# """" #???????????????????? | | ???# #?????# """" #???????????????????? | | ???#!!# #?????########???????????????????? | | ???#### #?#######???????###+##???????????? | | ??????# ### ######### ##??????????? | | ??????# +??????????? | | ??????# +??????????? | | ??????#+##### ##### < #### ##??????????? | | ####### #???###???# #??# [#???????????? | | #?????????#####??# [#???????????? | | #######+#????????????????# [#???????????? | | #????????????????????????###+##???????????? | | #?????????????????????????????????????????? | | #?????+?+?????????????????????????????????? | +----------------------------------------------------+ Best States ------------- Heat Dissipation 62 Coolant Potential 65 Energy Generation 21 Energy Capacity 325 Matter Stores 300 Matter Capacity 300 Sight Range 22 Terrain Scan Density 10 Jamming Range 12 Cloak Strength 5 Armor Coverage 600 Resistance: KI 30 Evasion (%) 50 Targeting Accuracy 18 Recoil Reduction 4 Relay Coupler Types 6 Relay Coupler Value 130 Item Schematics ----------------- Huge Storage Unit | -10/Materials | Hacked Transport Network Coupler | -8/Materials | Scanalyzed Robot Schematics ------------------ None Fabricated ------------ Nothing Alien Tech Used ----------------- None Achievements -------------- None Challenges ------------ None Game ------ Seed SpliceFissionStreamer Manual? 0 Play Time 03:36:05 Cumulative 321.2 hours Start 2022.07.05 @ 08:00:00 End 2022.07.11 @ 15:35:05 Sessions 30 Manual Loads 0 Difficulty Rogue Special Mode None Game No. 144 Rogue 144 Adventurer 0 Explorer 0 Win Type - Total 8 Types 5/0/1/1/0/0/0/1/0 Lore% 88 Gallery% 91 Achievement% 70 Wizard Run 0 Options --------- ASCII 0 Keyboard 1 Movement Vi Keybinds 0 Fullscreen 2 Font 18/Cog Map View 76x50 Tactical HUD 1 Map Filters NONE Filters NONE Steam 0 RUN: 547337ea-e553-4bb6-a46e-74db9c0a550c